Cogmind - Beta 13 @@@ ROGUE MODE // 2024.04.14 @ 17:34:40 Player: Millea Result: Destroyed by CE-E1W(R) with Subdweller Machine Gun Performance ------------- Evolutions (0) 0 Regions Visited (2) 400 Robots Destroyed (19) 95 Value Destroyed (617) 617 Prototype IDs (0) 0 Alien Tech Used (0) 0 Bonus (0) 0 TOTAL SCORE: 1112 Bonus ------- None Cogmind --------- Core Integrity 0/250 Matter 280/300 Energy 100/100 System Corruption 0% Temperature Cool (0) Movement Rolling (130) Ox2 Location -10/Subcaves Parts ------- > --- POWER (1) -------- (None) > --- PROPULSION (2) --- Aluminum Leg Subdweller Monowheel > --- UTILITY (2) ------ High-capacity Storage Unit Makeshift Thermal Plating > --- WEAPON (2) ------- Subdweller Machine Gun Barrage Gun > --- INVENTORY (20) --- Subdweller Power Source Subdweller Power Source Subdweller Power Source Subdweller Monowheel Subdweller Monowheel Terrain Scanner Medium Laser Small Laser Subdweller Beam Cannon Subdweller Machine Gun Grenade Launcher Mining Laser Mining Laser Multitool Scrap Shield Fragment (47) Peak State ------------ > --- POWER ------------ (None) > --- PROPULSION ------- Aluminum Leg Subdweller Monowheel > --- UTILITY ---------- High-capacity Storage Unit Makeshift Thermal Plating > --- WEAPON ----------- Subdweller Machine Gun Barrage Gun > --- INVENTORY -------- Subdweller Power Source Subdweller Power Source Subdweller Power Source Subdweller Monowheel Terrain Scanner Medium Laser Small Laser Subdweller Beam Cannon Subdweller Machine Gun Grenade Launcher Mining Laser Mining Laser Multitool Scrap Shield Fragment [Rating: 15] Favorites ----------- Power Ion Engine Engine Ion Engine Propulsion Light Treads Treads Light Treads Leg Aluminum Leg Wheel Subdweller Monowheel Utility High-capacity Storage Unit Device Heat Sink Storage High-capacity Storage Unit Protection Makeshift Thermal Plating Weapon Light Assault Rifle Energy Gun Medium Laser Ballistic Gun Light Assault Rifle Special Weapon Mining Laser Build | -11 -10 -10 ------- Run | Yrd Mat Sub Slots Evolved . | . . . Power . | . . . Propulsion . | . . . Utility . | . . . Weapon . | . . . Parts Attached 36 | 6 10 20 Power 4 | 1 1 2 Engine 4 | 1 1 2 Core . | . . . Reactor . | . . . Propulsion 11 | 2 3 6 Treads 5 | 2 3 . Leg 4 | . . 4 Wheel 2 | . . 2 Hover . | . . . Flight . | . . . Utility 5 | 1 3 1 Device 2 | . 2 . Storage 2 | 1 1 . Processor . | . . . Hackware . | . . . Protection 1 | . . 1 Artifact . | . . . Weapon 16 | 2 3 11 Energy Gun 2 | . 1 1 Energy Cannon . | . . . Ballistic Gun 10 | 2 2 6 Ballistic Cannon . | . . . Launcher . | . . . Special Weapon 4 | . . 4 Impact Weapon . | . . . Slashing Weapon . | . . . Piercing Weapon . | . . . Special Melee Weapon . | . . . Unidentified Prototypes . | . . . Parts Lost 11 | . 1 10 Power 3 | . . 3 Propulsion 4 | . . 4 Utility 2 | . 1 1 Weapon 2 | . . 2 Highest Loss Streak 4 | . 1 4 To Critical Strikes 1 | . . 1 Average Slot Usage (%) 88 | . 97 80 Engine 10 | . 13 7 Treads 14 | . 28 1 Leg 10 | . . 20 Wheel 2 | . . 4 Device 5 | . 11 . Storage 14 | . 14 14 Protection 1 | . . 2 Energy Gun 11 | . 7 16 Ballistic Gun 13 | . 20 7 Special Weapon 2 | . . 4 Naked Turns . | . . . Heaviest Build 51 | 12 49 51 Greatest Support 40 | 40 40 40 Greatest Overweight (x) 4 | . 1 4 Average Overweight (x) 1 | . . 2 Largest Inventory Capacity 20 | 8 20 20 Average Capacity 15 | 6 11 20 Most Carried 16 | 4 8 16 Average Carried 9 | 2 7 11 Final Capacity 20 | 8 20 20 Final Carried 15 | 4 8 15 Class Distribution -------------------- 100% | Mutant Dominant Class ---------------- Mutant | -10/Materials Mutant | -10/Subcaves Resources | -11 -10 -10 ----------- Run | Yrd Mat Sub Matter Collected 626 | 213 145 268 Remotely 74 | . 74 . Salvage Created 765 | . 383 382 Parts 42 | . 26 16 Haulers Intercepted 1 | . 1 . Recyclers Shooed . | . . . Parts Field Recycled . | . . . Retrieved Matter . | . . . Parts Self-Destructed 5 | . . 5 Prevented 1 | . . 1 Kills | -11 -10 -10 ------- Run | Yrd Mat Sub Combat Hostiles Destroyed 18 | . 10 8 Guns 18 | . 10 8 Classes Destroyed 5 | . 3 2 Hauler 1 | . 1 . Swarmer 3 | . 3 . Grunt 9 | . 7 2 Artisan 1 | . . 1 Subdweller 6 | . . 6 Best Kill Streak 5 | . 5 2 Combat Bots Only 5 | . 5 2 Max Kills in Single Turn 1 | . 1 1 Gunslinging . | . . . Exploded . | . . . Melee . | . . . Uniques/NPCs Destroyed . | . . . Combat | -11 -10 -10 -------- Run | Yrd Mat Sub Hostile Shots Fired 112 | . 59 53 Missed 25 | . 7 18 Damage Taken 1502 | . 600 902 Core 265 | . 115 150 Absorbed by Shields . | . . . Ignored by Resistances 11 | . . 11 Core Remaining (%) 100 | 100 . . Volleys Fired 97 | . 44 53 Largest 2 | . 2 2 Hottest 100 | . 70 100 Shots Fired 177 | . 88 89 Gun 161 | . 88 73 Cannon . | . . . Launcher . | . . . Special 16 | . . 16 Kinetic 114 | . 84 30 Thermal 51 | . 4 47 Explosive . | . . . Electromagnetic 12 | . . 12 Robot Hit Streak 22 | . 7 22 Robot Miss Streak 5 | . 5 2 Penetration Max . | . . . Secondary Targets 1 | . 1 . Max Gunslinging Chain 1 | . 1 . Shots Hit Robots 107 | . 53 54 Core Hits 48 | . 27 21 Critical Kills . | . . . Critical Parts Destroyed . | . . . Critical Strikes 4 | . . 4 Burn 2 | . . 2 Corrupt 2 | . . 2 Melee Attacks . | . . . Impact . | . . . Slashing . | . . . Piercing . | . . . Sneak Attacks . | . . . Combat Hostiles . | . . . Follow-up Attacks . | . . . Damage Inflicted 1134 | . 447 687 Guns 1130 | . 447 683 Cannons . | . . . Explosions . | . . . Melee . | . . . Ramming 4 | . . 4 Kinetic 664 | . 421 243 Thermal 355 | . 26 329 Explosive . | . . . Electromagnetic 111 | . . 111 Impact . | . . . Slashing . | . . . Piercing . | . . . Highest Corruption . | . . . Average Corruption . | . . . Corruption Purged . | . . . Corruption Blocked . | . . . Overload Shots . | . . . Overflow Damage . | . . . Projectiles . | . . . Explosions . | . . . Melee . | . . . Knockbacks . | . . . Impact . | . . . Kinetic . | . . . Secondary . | . . . Self-Inflicted Damage . | . . . Shots . | . . . Rammed 1 | . . 1 Targets Rammed 1 | . . 1 Kicked . | . . . Crushed . | . . . Highest Temperature 44 | . 44 5 Average Temperature 13 | . 14 3 Received Heat Transfer 387 | . 273 114 Siege Activations . | . . . Robots Corrupted . | . . . Combat Hostiles . | . . . Parts Fried . | . . . Impact Corruptions . | . . . Robots Melted . | . . . Combat Hostiles . | . . . Parts Melted 3 | . . 3 Heat Transferred 1184 | . 74 1110 Parts Sabotaged . | . . . Parts Stolen . | . . . Parts Stripped . | . . . Power Chain Reactions . | . . . Alert | -11 -10 -10 ------- Run | Yrd Mat Sub Peak Influence 237 | . 237 . Initial . | . . . Average 64 | . 70 . Maximum Alert Level 1 | . 1 . Low Security (%) 84 | 100 83 . Level 1 15 | . 16 . Level 2 . | . . . Level 3 . | . . . Level 4 . | . . . Level 5 . | . . . High Security . | . . . Max Security . | . . . Squads Dispatched 2 | . 2 . Investigation . | . . . Extermination . | . . . Reinforcement 2 | . 2 . Assault . | . . . Garrison . | . . . Intercept . | . . . Searches Triggered . | . . . Construction Impeded . | . . . Haulers Reinforced . | . . . Active Scanning Responses . | . . . Cargo Convoy Interrupts . | . . . Stealth | -11 -10 -10 --------- Run | Yrd Mat Sub Distress Signals . | . . . Communications Jammed . | . . . Distress Signals . | . . . Times Spotted 27 | . 18 9 Peak Tracking Total 5 | . 5 2 Tactical Retreats . | . . . Traps | -11 -10 -10 ------- Run | Yrd Mat Sub Traps Triggered 3 | . 3 . Indirectly . | . . . Trap Hack Attempts . | . . . Triggered . | . . . Disarmed . | . . . Reprogrammed . | . . . Reused . | . . . Traps Extracted . | . . . Installed . | . . . Triggered . | . . . Machines | -11 -10 -10 ---------- Run | Yrd Mat Sub Machines Disabled . | . . . Max in Single Turn . | . . . Machines Repaired . | . . . Machines Dismantled . | . . . Machines Sabotaged . | . . . Overloaded Fab Kills . | . . . Hacking | -11 -10 -10 --------- Run | Yrd Mat Sub Machines Accessed . | . . . Terminals . | . . . Fabricators . | . . . Repair Stations . | . . . Recycling Units . | . . . Scanalyzers . | . . . Garrison Access . | . . . Total Hacks . | . . . Successful . | . . . Failed . | . . . Catastrophic . | . . . Database Lockouts . | . . . Manual . | . . . Terminals . | . . . Fabricators . | . . . Repair Stations . | . . . Recycling Units . | . . . Scanalyzers . | . . . Garrison Access . | . . . Terminal Hacks . | . . . Fabricator Hacks . | . . . Repair Station Hacks . | . . . Recycling Unit Hacks . | . . . Scanalyzer . | . . . Garrison Access Hacks . | . . . Unauthorized Hacks . | . . . Terminals . | . . . Fabricators . | . . . Repair Stations . | . . . Recycling Units . | . . . Scanalyzers . | . . . Garrison Access . | . . . Data Cores Recovered . | . . . Used . | . . . Hacking Detections . | . . . Full Trace Events . | . . . Feedback Events . | . . . Feedback Blocked . | . . . Robot Schematics Acquired . | . . . Robots Built . | . . . Authchips . | . . . Time . | . . . Total Robot Build Rating . | . . . Part Schematics Acquired . | . . . Parts Built . | . . . Authchips . | . . . Time . | . . . Total Part Build Rating . | . . . Parts Repaired . | . . . Time . | . . . Parts Recycled . | . . . Recycled Matter . | . . . Retrieved Matter . | . . . Retrieved Components . | . . . Parts Scanalyzed . | . . . Part Schematics Acquired . | . . . Parts Damaged . | . . . Bothacking | -11 -10 -10 ------------ Run | Yrd Mat Sub Used RIF Installer . | . . . Robots Hacked . | . . . Non-combat . | . . . Combat . | . . . Robot Hacks Applied . | . . . Relay Couplers Released . | . . . Fabnet Peak Effective % . | . . . Robots Rewired . | . . . Allies Hacked . | . . . Hacks Repelled . | . . . Allies | -11 -10 -10 -------- Run | Yrd Mat Sub Total Allies . | . . . Largest Group . | . . . Highest-Rated Group . | . . . Highest-Rated Ally . | . . . Total Orders . | . . . Ally Attacks . | . . . Total Damage . | . . . Kills . | . . . Allies Corrupted . | . . . Allies Melted . | . . . Intel | -11 -10 -10 ------- Run | Yrd Mat Sub Robot Analysis Total . | . . . Derelict Logs Recovered . | . . . Drone Launches . | . . . Drone Recoveries . | . . . Exploration | -11 -10 -10 ------------- Run | Yrd Mat Sub Turns Passed 2152 | 87 990 1075 Spaces Moved 854 | 50 388 416 Core 4 | 4 . . Treads 448 | 46 388 14 Legs 216 | . . 216 Wheels 186 | . . 186 Hover . | . . . Flight . | . . . Fastest Speed 50 | 50 160 130 Average Speed 184 | 151 166 205 Slowest Speed 400 | 160 240 400 Overloaded Moves . | . . . Propulsion Burnouts . | . . . Robots Hopped . | . . . Cave-ins Triggered . | . . . Exploration Rate (%) 35 | 4 75 28 Regions Visited 2 Branch Regions 1 Pre-discovered Areas . | . . . Known Exits Taken . | . . . Unknown Exits Taken 2 | 1 1 . Scrap Searched . | . . . Spaces Dug . | . . . Terrain Destroyed . | . . . Melee . | . . . Projectile . | . . . AOE . | . . . Terrain Rammed . | . . . Walls Destroyed . | . . . Machines Disabled . | . . . Actions | -11 -10 -10 --------- Run | Yrd Mat Sub Total 1231 | 59 660 512 Wait 223 | . 212 11 Move 852 | 49 387 416 Hop . | . . . Pick Up 20 | 4 5 11 Fast Attach 17 | 6 8 3 Attach 7 | . 1 6 Detach . | . . . Swap 12 | . 1 11 Drop 2 | . 2 . Fire 97 | . 44 53 Melee . | . . . Ram . | . . . Kick . | . . . Crush 1 | . . 1 Escape Stasis . | . . . Rewire . | . . . Trap . | . . . Miscellaneous . | . . . Route ------- -11/Scrapyard -10/Materials (discovered 5 exits: [*Mat x2] / [*Min x2] / [*Sub]) -10/Subcaves (discovered 1 exit: [*Mat]) History --------- Turn | Location | Event 35 | -11/Scrapyard | Discovered new exit (range 15) 88 | -11/Scrapyard | Entered Materials 316 | -10/Materials | Build established: Mutant 342 | -10/Materials | Discovered new exit (range 15) 491 | -10/Materials | Discovered new exit (range 4) 633 | -10/Materials | Discovered new exit (range 9) 697 | -10/Materials | Discovered new exit (range 15) 1056 | -10/Materials | Discovered new exit (range 5) 1078 | -10/Materials | Entered Subcaves 1112 | -10/Subcaves | Ambushed by angry Subdweller bent on revenge 1160 | -10/Subcaves | Lost 4 parts (1p2n1u) 1537 | -10/Subcaves | Shifting Twisted Machinery released Sub. Power Source 1539 | -10/Subcaves | Shifting Twisted Machinery released Mak. Leg 1682 | -10/Subcaves | Core integrity fell below 50% 1732 | -10/Subcaves | Lost 3 parts (1p2n) 1920 | -10/Subcaves | Discovered new exit (range 10) 2101 | -10/Subcaves | Core integrity fell below 20% 2153 | -10/Subcaves | Destroyed by CE-E1W(R) with Subdweller Machine Gun Last Messages --------------- 01909_ Acquired 10 matter. 01920_ EXIT=FOUND 01934_ Acquired Mak. Thermal Plating. 01938_ Acquired Barrage Gun. 01948_ G-47 Trooper IFF system glitched. 01951_ EM Pulse Gun destroyed. 01956_ Lgt. Assault Rifle destroyed. 01958_ G-34 Mercenary destroyed. 01961_ G-47 Trooper destroyed. 01967_ Corrupted Aluminum Leg fries itself beyond repair. 01968_ Corrupted Lgt. Nuclear Core self-destruct mechanism malfunctions. 01968_ Acquired 29 matter. 01969_ Aluminum Leg fries itself beyond repair. 02057_ L3-WK4(u) tweaks Twisted Machinery. 02109_ LL-0BK(R) destroyed. 02112_ Acquired 42 matter. 02114_ Acquired Sub. Monowheel. Map ----- +----------------------------------------------------+ | ???????# ##?????????????????????????????? | | ???????# ##????????????????????????????? | | ???????## #????????????????????????????? | | ????????# ##????????????????????????????? | | ????????# ###?????????????????????????????? | | ????????## ## ##???????????????????????????????? | | ????????## ## ##???????????????????????????????? | | ???????## "#???????????????????????????????? | | ???????# "" ""##??????????????????????????????? | | ???????# "" " ###????????????????????????????? | | ???????## "" """ ####?????????????????????????? | | ????????## "" " " #?????????????????????????? | | ?????????###"" """" #?????????????????????????? | | ???????????#"" "" ##?????????????????????????? | | ?????????### "" " ###??????????????????????????? | | ????????## "" " ##????????????????????????????? | | ????????# " " ##?????????????????????????????? | | ????????# "" ##?????????????????????????????? | | ????????# ! "" #?###?#########???????????????? | | ????????# % """ "### ### # "#""##"?????????????? | | ????????## ## """"" """ " """"?????????????? | | ?????????#####" """" "" " """ ?????????????? | | ?????????????# # # # """ " #????????????? | | ?????????????# ######### """"" #????????????? | | ????????????# ##???# ### #????????????? | | ????????????# ##????# @ ##??# ??????????? | | ????????????## ###?????# #????# #????????????? | | ?????????????###???????## #???? ##????????????? | | ????????????????????????# ????##?????????????? | | ????????????????????????# ??????????????????? | | ???????????????????????? ?????????????????? | | ???????????????????????? ????????????????? | | ??????????????????????? ???????????????? | | ???????????????????????# ?????????????? | | ???????????????????????# ????????????? | | ???????????????????????## ## ????????????? | | ????????????????????????#### R#? ????????????? | | ????????????????????????????# ?? ??????????????? | | ????????????????????????????? ?????????????????? | | ????????????????????????????? ??????????????????? | | ?????????????????????????????????????????????????? | | ?????????????????????????????????????????????????? | | ?????????????????????????????????????????????????? | | ?????????????????????????????????????????????????? | | ?????????????????????????????????????????????????? | | ?????????????????????????????????????????????????? | | ?????????????????????????????????????????????????? | | ?????????????????????????????????????????????????? | | ?????????????????????????????????????????????????? | | ?????????????????????????????????????????????????? | +----------------------------------------------------+ Best States ------------- Heat Dissipation 35 Energy Generation 10 Energy Capacity 250 Matter Stores 300 Matter Capacity 300 Sight Range 16 Terrain Scan Density 10 Armor Coverage 100 Resistance: TH 10 Evasion (%) 40 Recoil Reduction 2 Item Schematics ----------------- None Robot Schematics ------------------ None Fabricated ------------ Nothing Alien Tech Used ----------------- None Achievements -------------- None Challenges ------------ None Game ------ Seed StasisNetworkAirjet Manual? 0 Play Time 00:10:50 Cumulative 195.6 hours Start 2024.04.14 @ 17:25:28 End 2024.04.14 @ 17:34:40 Sessions 1 Manual Loads 0 Difficulty Rogue Special Mode None Game No. 158 Rogue 158 Adventurer 0 Explorer 0 Win Type - Total 4 Types 4/0/0/0/0/0/0/0/0 Lore% 69 Gallery% 77 Achievement% 64 Wizard Run 0 Options --------- Layout 2 ASCII 1 Keyboard 0 Movement Mouse Keybinds 0 Fullscreen 2 Font 24/Smallcaps Map View 50x44 Zoom Use 0% Tactical HUD 1 Map Filters NONE Filters NONE Steam 1 RUN: df6933d0-d5f9-4fd5-9ccc-06ad95290de8